bitfinex/quotes_ETHUSD_20251117
["timestamp","ask_amount","ask_price","bid_price","bid_amount"]
[1763390366641,0.4859,3197.1,3194.7,0.405504]
[1763390366848,0.4859,3196.2,3194.6,0.75734533]
[1763390367044,0.4859,3195.8,3191.4,1.50536378]
[1763390367272,0.4859,3195.8,3192.9,0.4974]
[1763390367680,0.405504,3195.7,3192.5,8.36270701]
[1763390367838,0.405504,3195.7,3192.6,0.8362707]
[1763390368036,0.405504,3195.5,3192.1,3.59840175]
[1763390368458,0.405504,3195.3,3192.1,0.005]
[1763390368965,0.405504,3195.1,3193.1,0.005]
[1763390369350,0.405504,3194.9,3193.1,0.005]
[1763390369738,0.192,3193.2,3192.1,0.005]
[1763390369958,0.6777,3193.2,3192.1,0.005]
[1763390370399,0.4865,3193.2,3192.2,0.03132635]
[1763390370608,0.4865,3194.1,3192.1,6.27046627]
[1763390370756,0.4865,3194.1,3192.2,1.53403927]
[1763390371100,0.005,3196.9,3192.3,0.405504]
[1763390371101,0.192,3195.1,3192.3,0.405504]
[1763390371266,0.6785,3195.1,3192.5,0.405504]
[1763390371465,0.6785,3195.1,3192.7,0.405504]
[1763390371666,0.4865,3195.0,3192.7,0.405504]
[1763390371865,0.4865,3195.0,3192.9,0.405504]
[1763390372103,0.4865,3195.6,3192.8,0.4607]
[1763390372304,0.4865,3196.5,3193.5,9.39408171]
[1763390372508,0.4865,3196.5,3193.6,2.38315448]
[1763390372666,0.4865,3196.5,3193.6,2.84385448]
[1763390372867,0.005,3194.9,3193.7,0.866204]
[1763390373190,0.005,3196.9,3194.4,1.31249664]
[1763390373521,0.005,3196.9,3194.6,0.405504]
[1763390373758,0.005,3196.9,3195.4,1.31249664]
[1763390373964,0.005,3196.9,3195.6,0.405504]
[1763390374412,0.005,3197.9,3196.2,1.31249664]
[1763390374761,0.005,3197.9,3197.0,1.31249664]
[1763390374964,0.4865,3200.2,3197.9,0.405504]
[1763390375141,0.192,3201.0,3198.1,0.405504]
[1763390375439,0.4865,3201.1,3198.3,0.405504]
[1763390375607,0.4865,3201.1,3198.5,0.405504]
[1763390375800,0.192,3201.6,3198.5,0.405504]
[1763390376008,0.192,3201.6,3198.6,0.4607]
[1763390376206,0.4865,3200.7,3198.7,0.405504]
[1763390376420,0.4865,3200.7,3198.9,0.405504]
[1763390376638,0.4865,3200.7,3198.6,1.31249664]
[1763390376840,0.4865,3201.3,3198.7,0.48996053]
[1763390377046,0.4865,3201.3,3198.8,0.405504]
[1763390377221,0.192,3201.6,3199.0,0.405504]
[1763390377403,0.192,3201.6,3198.9,1.36769264]
[1763390377404,0.192,3201.6,3199.2,0.405504]
[1763390377609,0.4907,3201.9,3199.1,0.4607]
[1763390377847,0.4907,3201.9,3199.2,0.405504]
[1763390378142,0.0042,3201.9,3199.2,0.405504]
[1763390378350,0.0042,3201.9,3199.1,0.4607]
[1763390378351,0.0042,3201.9,3200.0,6.25]
[1763390378656,0.4865,3201.8,3200.1,0.75624966]
[1763390378943,0.4865,3201.8,3199.5,0.405504]
[1763390378944,0.4865,3201.8,3199.9,0.405504]
[1763390379148,0.0042,3201.9,3200.3,0.405504]
[1763390379302,0.0042,3201.9,3200.2,0.90699264]
[1763390379507,0.0042,3201.9,3200.4,0.405504]
[1763390379943,0.005,3202.9,3201.8,0.1836]
[1763390380148,0.005,3203.9,3203.1,0.405504]
[1763390380305,0.4865,3206.0,3203.3,0.405504]
[1763390380507,0.192,3206.4,3203.3,0.405504]
[1763390380707,0.4865,3205.2,3203.3,0.405504]
[1763390380934,0.4865,3204.8,3202.7,1.36769264]
[1763390381150,0.4865,3204.8,3202.4,0.405504]
[1763390381938,0.4865,3204.8,3202.4,1.31249664]
[1763390382251,0.4865,3204.8,3202.6,8.76821101]
[1763390382461,0.4865,3204.8,3202.1,0.4607]
[1763390382656,0.405504,3204.7,3202.1,0.005]
[1763390382811,0.4865,3204.8,3202.1,0.005]
[1763390383011,0.4865,3204.7,3202.1,0.005]
[1763390383514,0.4865,3204.7,3202.1,0.410504]
[1763390383813,0.002,3204.8,3202.8,1.31249664]
[1763390384015,0.002,3204.8,3203.0,0.405504]
[1763390384457,0.4865,3204.7,3203.0,0.405504]
[1763390384766,0.002,3204.8,3203.0,0.405504]
[1763390384767,0.002,3204.8,3203.0,0.4607]
[1763390384908,0.002,3204.8,3203.1,0.405504]
[1763390385309,0.002,3204.8,3203.3,0.405504]
[1763390385557,0.002,3204.8,3203.2,0.4607]
[1763390385724,0.002,3204.8,3203.2,0.405504]
[1763390385911,0.002,3204.8,3203.1,0.03121975]
[1763390386114,0.4865,3204.7,3202.4,0.90699264]
[1763390386417,0.4865,3204.7,3202.1,0.005]
[1763390386656,0.405504,3204.6,3202.1,0.005]
[1763390386823,0.4865,3204.7,3202.1,0.005]
[1763390387133,0.002,3204.8,3202.1,0.005]
[1763390387134,0.4865,3204.6,3202.1,0.005]
[1763390387959,0.4865,3204.6,3202.2,0.4607]
[1763390388110,0.4865,3204.6,3202.3,0.76436906]
[1763390388311,0.4865,3204.6,3202.1,0.005]
[1763390388514,0.4865,3204.6,3202.2,0.03122853]
[1763390388722,0.002,3204.8,3202.2,0.43673253]
[1763390388923,0.002,3204.8,3202.6,8.36270701]
[1763390389174,0.002,3204.8,3202.7,1.31249664]
[1763390389326,0.002,3204.8,3202.9,0.405504]
[1763390389722,0.002,3204.8,3203.1,0.405504]
[1763390390162,0.002,3204.8,3203.0,0.4607]
[1763390390318,0.4865,3204.7,3202.8,0.96752037]
[1763390390522,0.4857,3204.7,3202.2,0.90699264]
[1763390390719,0.002,3204.8,3202.8,1.31249664]
[1763390391177,0.002,3204.8,3202.8,1.77319664]
[1763390391339,0.002,3204.8,3202.9,1.01359037]
[1763390391661,0.002,3204.8,3203.0,0.405504]
[1763390391821,0.002,3204.8,3202.1,0.005]
[1763390392026,0.192,3206.6,3202.1,0.005]
[1763390392027,8.46270701,3206.4,3202.1,0.005]
[1763390392227,1.63072493,3206.1,3202.1,0.005]
[1763390392468,0.1,3205.8,3202.1,0.005]
[1763390392807,0.90699264,3205.9,3202.1,0.005]
[1763390393009,0.4865,3205.8,3202.1,0.005]
[1763390394211,0.405504,3205.7,3202.1,0.005]
[1763390394369,0.405504,3205.7,3204.1,0.005]
[1763390394710,0.405504,3205.3,3203.1,0.005]
[1763390394916,0.405504,3205.5,3203.1,0.005]
[1763390395213,0.0326775,3202.5,3202.1,0.005]
[1763390395812,0.4865,3202.4,3202.1,0.005]
[1763390396014,0.4865,3202.4,3201.1,0.005]
[1763390397153,0.192,3201.2,3200.1,0.005]
[1763390397299,0.4865,3202.4,3200.1,0.005]
[1763390397502,0.4745,3202.3,3200.1,0.005]
[1763390397917,0.4745,3202.3,3200.2,0.4801]
[1763390398239,0.4745,3202.3,3200.1,0.005]
[1763390398442,0.4745,3202.3,3200.2,0.90699264]
[1763390398604,0.4745,3202.3,3200.1,0.91199264]
[1763390398812,0.4745,3202.3,3200.2,0.405504]
[1763390399017,0.0326775,3202.5,3200.4,0.405504]
[1763390399225,0.0326775,3202.5,3200.4,0.885604]
[1763390399427,0.0326775,3202.5,3200.7,1.31249664]
[1763390399926,0.0326775,3202.5,3200.9,0.405504]
[1763390400330,0.4745,3202.4,3200.3,0.35354063]
[1763390400531,0.4745,3202.4,3200.1,0.005]
[1763390400849,0.4745,3202.4,3200.4,0.405504]
[1763390401050,0.4745,3202.4,3200.1,0.005]
[1763390401253,0.405504,3202.3,3200.1,0.005]
[1763390401452,0.1814,3200.2,3198.1,0.005]
[1763390401652,0.4745,3200.5,3198.3,0.4801]
[1763390401814,0.4745,3200.5,3199.2,0.03125781]
[1763390402015,0.4745,3200.5,3198.3,0.4801]
[1763390402214,0.4745,3200.5,3198.1,0.005]
[1763390402215,0.405504,3200.4,3198.1,0.005]
[1763390402415,0.4745,3200.3,3198.2,0.03126758]
[1763390402658,0.405504,3200.2,3198.1,0.005]
[1763390402814,0.4745,3200.3,3198.1,0.005]
[1763390403015,0.4745,3200.2,3198.1,0.005]
[1763390404258,0.405504,3200.1,3198.1,0.005]
[1763390404415,0.405504,3200.1,3197.1,0.005]
[1763390404416,0.1365,3198.2,3197.1,0.005]
[1763390404617,0.1365,3198.2,3195.1,0.005]
[1763390404817,0.405504,3198.0,3195.1,0.005]
[1763390405265,0.1365,3198.2,3195.1,0.005]
[1763390405266,0.4745,3197.9,3195.1,0.005]
[1763390405614,0.1365,3198.2,3196.2,0.90699264]
[1763390405818,0.4745,3198.3,3196.3,0.71695359]
[1763390406016,0.4745,3198.3,3196.2,0.4801]
[1763390406244,0.4745,3198.3,3196.1,0.005]
[1763390406518,0.1814,3196.2,3196.1,0.005]
[1763390406718,0.6559,3196.2,3195.1,0.005]
[1763390407041,0.4745,3197.3,3195.1,0.005]
[1763390407940,0.405504,3197.2,3195.1,0.005]
[1763390408317,0.405504,3197.0,3195.1,0.005]
[1763390408759,0.1814,3195.2,3193.3,0.1636176]
[1763390408960,0.1814,3195.2,3192.4,0.4801]
[1763390409262,0.405504,3195.0,3191.8,0.001]
[1763390409856,0.405504,3194.8,3191.8,0.001]
[1763390410219,0.405504,3194.6,3191.8,0.001]
[1763390410519,0.4745,3194.7,3192.4,0.4801]
[1763390410721,0.4745,3195.7,3193.2,0.4801]
[1763390410945,0.4745,3195.7,3192.3,0.1858]
[1763390410946,0.4745,3195.6,3192.5,3.13227506]
[1763390411143,0.4745,3195.6,3193.3,0.405504]
[1763390411389,0.4745,3195.6,3193.4,0.4801]
[1763390411601,0.4745,3196.4,3193.5,0.405504]
[1763390411911,0.005,3195.9,3193.1,0.005]
[1763390412214,0.005,3195.9,3193.2,0.4801]
[1763390412363,0.4745,3195.8,3193.3,0.67485921]
[1763390412562,0.4745,3195.8,3193.1,0.005]
[1763390412761,0.4745,3195.8,3193.4,0.405504]
[1763390412977,0.4745,3195.8,3193.3,0.4801]
[1763390413207,0.4745,3195.8,3193.1,0.005]
[1763390413411,0.4745,3195.8,3193.2,1.38709264]
[1763390413591,0.4737,3195.8,3193.3,1.1710577]
[1763390413898,0.005,3195.9,3193.3,1.68247326]
[1763390414099,0.005,3195.9,3193.8,1.31249664]
[1763390414501,0.005,3195.9,3193.9,0.4801]
[1763390414660,0.005,3195.9,3194.0,0.90699264]
[1763390414866,0.005,3195.9,3194.2,0.90699264]
[1763390415079,0.005,3195.9,3193.5,6.87125975]
[1763390415281,0.005,3195.9,3193.6,0.90699264]
[1763390415484,0.005,3195.9,3193.6,1.38709264]
[1763390415686,0.4745,3195.8,3193.6,0.90699264]
[1763390415911,0.4745,3195.8,3194.2,0.90699264]
[1763390416112,0.005,3195.9,3194.3,0.77782524]
[1763390416334,0.005,3195.9,3195.3,6.87125975]
[1763390416635,0.005,3195.9,3195.4,4.54255934]
[1763390416816,0.005,3195.9,3195.4,4.51125524]
[1763390416983,0.005,3195.9,3195.5,1.6130515]
[1763390417325,0.005,3196.9,3195.6,0.405504]
[1763390417531,0.005,3196.9,3196.8,0.90699264]
[1763390417683,0.005,3196.9,3195.9,0.90699264]
[1763390418015,0.005,3196.9,3196.0,0.77782524]
[1763390418221,0.005,3196.9,3196.5,0.90699264]
[1763390418424,0.005,3196.9,3196.6,0.4748]
[1763390418578,0.005,3196.9,3196.6,3.60311186]
[1763390418782,0.005,3196.9,3196.6,0.4748]
[1763390418981,0.005,3196.9,3195.6,1.38179264]
[1763390419182,0.005,3196.9,3195.7,0.82530524]
[1763390419396,0.005,3196.9,3196.2,0.90699264]
[1763390419689,0.005,3196.9,3195.7,0.82530524]
[1763390419902,0.4826,3196.8,3194.1,0.005]
[1763390420300,0.4826,3196.8,3194.6,6.87125975]
[1763390420703,0.4826,3196.8,3194.7,0.90699264]
[1763390420918,0.4826,3196.8,3195.2,6.87125975]
[1763390421093,0.005,3196.9,3195.9,0.90699264]
[1763390421577,0.005,3196.9,3195.4,0.405504]
[1763390421999,0.4876,3196.9,3195.0,0.001]
[1763390422905,0.4876,3196.9,3195.4,0.90699264]
[1763390423105,0.005,3196.9,3196.0,0.90699264]
[1763390423302,0.005,3196.9,3196.1,0.77782524]
[1763390423507,0.005,3196.9,3195.6,0.90699264]
[1763390423749,0.005,3196.9,3195.4,1.31249664]
[1763390423964,0.4826,3196.8,3195.0,0.4758]
[1763390424255,0.4826,3196.8,3195.0,0.001]
[1763390424863,0.405504,3196.7,3195.0,0.001]
[1763390425060,0.4826,3196.8,3195.0,0.001]
[1763390425264,0.888104,3196.7,3195.0,0.001]
[1763390425606,0.4826,3196.6,3195.0,0.001]
[1763390426417,0.4826,3196.6,3195.0,0.90799264]
[1763390426617,0.4826,3196.6,3195.1,0.77792524]
[1763390426820,0.005,3196.9,3195.1,0.77792524]
[1763390427036,0.4826,3196.8,3195.1,0.77792524]
[1763390427221,0.4826,3196.8,3195.2,0.405504]
[1763390427421,0.005,3196.9,3195.2,0.405504]
[1763390427751,0.005,3196.9,3195.1,1.25612524]
[1763390427752,0.005,3196.9,3195.6,0.90699264]
[1763390428275,0.4928,3196.8,3195.3,0.16616292]
[1763390428410,0.4928,3196.8,3195.0,0.001]
[1763390429511,3.709504,3196.7,3195.0,0.001]
[1763390429711,0.4202304,3196.6,3195.0,0.001]
[1763390429927,0.4928,3196.6,3195.0,0.001]
[1763390430586,1.39979264,3196.6,3195.0,0.001]
[1763390430883,0.4928,3196.6,3195.0,0.001]
[1763390431082,0.4928,3196.5,3195.0,0.001]
[1763390432676,0.005,3196.9,3195.0,6.87225975]
[1763390432984,0.005,3196.9,3195.6,6.87125975]
[1763390433149,0.005,3196.9,3195.7,0.90699264]
[1763390433349,0.005,3196.9,3196.3,1.31249664]
[1763390433585,0.005,3196.9,3195.8,0.405504]
[1763390433586,0.005,3196.9,3196.8,7.77825239]
[1763390433950,0.005,3196.9,3196.8,8.25645239]
[1763390434286,0.005,3196.9,3196.8,9.08209763]
[1763390435153,0.002,3197.3,3196.9,1.31249664]
[1763390435347,0.005,3197.9,3196.9,1.79069664]
[1763390435555,0.005,3197.9,3197.8,8.18375639]
[1763390435814,0.1814,3201.7,3197.8,8.18375639]
[1763390435815,0.6792,3200.9,3197.9,1.31249664]
[1763390436099,0.005,3200.9,3198.9,1.31249664]
[1763390436389,0.005,3200.9,3199.0,0.405504]
[1763390436550,0.005,3200.9,3199.7,3.12529299]
[1763390436748,0.0042,3199.9,3199.7,0.405504]
[1763390436948,0.0042,3199.9,3199.6,0.90699264]
[1763390436949,0.0042,3199.9,3199.8,0.883704]
[1763390437176,0.0042,3199.9,3199.8,0.96980793]
[1763390437491,0.005,3200.9,3199.9,0.405504]
[1763390437719,0.005,3200.9,3200.2,0.90699264]
[1763390438222,0.005,3200.9,3200.8,0.90699264]
[1763390438385,0.005,3200.9,3200.8,1.31249664]
[1763390438585,0.005,3200.9,3200.8,2.62837228]
[1763390438770,0.0326775,3202.5,3200.9,0.405504]
[1763390438971,0.0326775,3202.5,3201.8,0.90699264]
[1763390439203,0.0326775,3202.5,3201.2,0.90699264]
[1763390439518,0.0326775,3202.5,3201.8,1.31249664]
[1763390439685,0.005,3202.9,3202.5,0.405504]
[1763390440010,0.005,3202.9,3202.6,0.4782]
[1763390440213,0.005,3202.9,3202.7,0.43672765]
[1763390440411,0.005,3202.9,3202.7,0.405504]
[1763390440615,0.005,3202.9,3202.4,0.90699264]
[1763390440832,0.005,3202.9,3202.6,0.405504]
[1763390441118,0.005,3202.9,3202.8,0.405504]
[1763390441271,0.005,3202.9,3202.5,0.77782524]
[1763390441470,0.005,3202.9,3202.7,0.405504]
[1763390441709,0.005,3202.9,3202.6,0.4782]
[1763390441710,0.005,3202.9,3202.8,8.18375639]
[1763390441883,0.005,3202.9,3202.8,0.90699264]
[1763390442284,0.005,3202.9,3202.1,6.87125975]
[1763390442484,0.005,3202.9,3201.2,3.12380563]
[1763390442485,0.005,3202.9,3201.8,0.4782]
[1763390442811,0.005,3202.9,3202.1,0.405504]
[1763390443023,0.005,3202.9,3202.8,0.405504]
[1763390443198,0.005,3202.9,3202.2,1.20587637]
[1763390443402,0.005,3202.9,3202.3,0.405504]
[1763390443722,0.005,3202.9,3202.7,0.90699264]
[1763390444032,0.005,3202.9,3201.3,6.87125975]
[1763390444209,0.4978,3202.9,3201.3,7.55838573]
[1763390444378,0.4978,3202.9,3200.6,7.06425975]
[1763390444578,0.4978,3202.9,3200.7,0.90699264]
[1763390444820,0.4978,3202.9,3200.8,7.66838499]
[1763390445333,0.4978,3202.9,3200.2,6.87125975]
[1763390445674,0.405504,3202.8,3199.1,0.4832]
[1763390445882,0.405504,3202.8,3199.3,6.87125975]
[1763390446074,0.405504,3202.8,3199.1,0.005]
[1763390446075,0.405504,3202.6,3199.1,0.005]
[1763390446314,0.4928,3202.7,3199.1,0.005]
[1763390446315,0.1404,3200.2,3199.1,0.005]
[1763390446675,0.4928,3200.1,3199.1,0.005]
[1763390448216,0.4928,3200.9,3199.1,0.005]
[1763390448423,0.4928,3201.5,3199.1,0.005]
[1763390448720,0.005,3201.9,3199.1,0.005]
[1763390449218,0.005,3201.9,3199.5,0.405504]
[1763390449219,0.4928,3201.8,3199.5,0.405504]
[1763390449430,0.4928,3201.8,3199.5,1.31249664]
[1763390449592,0.4928,3201.8,3199.5,0.90699264]
[1763390450381,0.005,3201.9,3199.6,0.405504]
[1763390450894,0.005,3201.9,3200.0,6.87125975]
[1763390451093,0.005,3201.9,3201.2,6.87125975]
[1763390451409,0.005,3201.9,3201.0,0.90699264]
[1763390451610,0.005,3203.9,3201.9,0.405504]
[1763390451819,0.005,3203.9,3202.9,0.405504]
[1763390451986,0.005,3203.9,3202.2,6.87125975]
[1763390452321,0.005,3203.9,3202.1,0.546]
[1763390452322,0.005,3203.9,3203.1,0.405504]
[1763390452481,0.005,3203.9,3203.0,0.90699264]
[1763390452687,0.2588,3203.9,3201.6,0.4782]
[1763390452891,0.005,3203.9,3202.4,1.31249664]
[1763390453321,0.005,3203.9,3202.6,0.405504]
[1763390453732,0.005,3203.9,3200.9,0.193]
[1763390453733,0.2538,3203.8,3200.9,0.193]
[1763390453926,0.2538,3203.8,3201.2,6.87125975]
[1763390454502,0.2538,3203.8,3201.3,0.0312373]
[1763390454706,0.2538,3203.8,3201.4,0.69024971]
[1763390455109,0.2538,3203.8,3201.1,0.005]
[1763390455110,0.405504,3203.7,3201.1,0.005]
[1763390455311,1.31249664,3203.3,3201.1,0.005]
[1763390455601,0.1685,3201.2,3201.1,0.005]
[1763390456147,0.4165,3201.2,3200.1,0.005]
[1763390456637,0.248,3201.1,3200.1,0.005]
[1763390456990,0.1685,3201.2,3200.1,0.005]
[1763390457193,0.248,3201.6,3200.1,0.005]
[1763390457398,0.248,3201.6,3200.1,0.0033]
[1763390457695,0.248,3201.6,3199.1,0.005]
[1763390457696,0.005,3199.5,3199.1,0.005]
[1763390457894,0.005,3198.3,3197.1,0.005]
[1763390458130,0.405504,3199.1,3197.1,0.005]
[1763390458131,0.2375,3198.2,3197.1,0.005]
[1763390458293,0.643004,3199.0,3197.1,0.005]
[1763390458494,0.3947004,3198.9,3197.1,0.005]
[1763390458697,0.2375,3198.8,3197.1,0.005]
[1763390459435,1.31249664,3198.5,3197.1,0.0026]
[1763390459730,0.2351,3198.6,3197.1,0.0026]
[1763390459934,0.2351,3198.5,3197.1,0.0026]
[1763390460298,0.1936,3199.2,3197.1,0.0026]
[1763390460498,0.2351,3199.1,3197.1,0.0026]
[1763390460756,0.005,3199.9,3197.7,0.405504]
[1763390461036,0.005,3199.9,3198.2,0.405504]
[1763390461208,0.2439,3199.8,3197.3,0.901704]
[1763390461407,0.005,3199.9,3197.3,0.901704]
[1763390461408,0.005,3199.9,3197.4,1.27349637]
[1763390461640,0.005,3199.9,3197.9,6.87125975]
[1763390461810,0.2489,3199.9,3197.4,0.77729637]
[1763390462013,0.2489,3199.9,3197.1,0.0026]
[1763390462209,0.2489,3199.9,3197.2,0.4962]
[1763390462724,0.2489,3199.9,3197.4,6.87125975]
[1763390462925,0.005,3199.9,3198.2,1.31249664]
[1763390463238,0.005,3199.9,3198.9,0.90699264]
[1763390463397,0.005,3199.9,3199.0,0.77782524]
[1763390463731,0.005,3199.9,3198.4,1.31249664]
[1763390464034,0.005,3199.9,3198.4,0.4962]
[1763390464331,0.1848,3198.5,3197.1,0.0026]
[1763390464834,0.2439,3198.4,3197.1,0.0026]
[1763390465004,0.405504,3198.3,3197.1,0.0026]
[1763390465395,0.2439,3198.2,3197.1,0.0026]
[1763390466010,0.405504,3198.1,3197.1,0.0026]
[1763390466207,0.2439,3198.2,3197.1,0.0026]
[1763390466453,0.405504,3198.1,3197.1,0.0001]
[1763390466742,1.31249664,3197.7,3197.1,0.0001]
[1763390466895,0.405504,3197.5,3197.1,0.0001]
[1763390467097,0.81837564,3197.6,3197.1,0.0001]
[1763390467098,0.2414,3197.4,3197.1,0.0001]
[1763390467333,0.405504,3197.3,3197.1,0.0001]
[1763390467732,1.31249664,3197.1,3195.1,0.005]
[1763390467933,0.405504,3196.1,3195.1,0.005]
[1763390468132,1.31249664,3195.9,3195.1,0.0026]
[1763390468375,1.31249664,3195.3,3194.4,0.001]
[1763390468573,0.81837564,3195.2,3194.4,0.001]
[1763390468744,0.405504,3195.3,3194.1,0.006]
[1763390469078,0.405504,3194.1,3192.1,0.005]
[1763390469276,0.2393,3194.0,3192.1,0.005]
[1763390469636,0.405504,3193.9,3192.1,0.005]
[1763390470050,0.405504,3193.7,3192.1,0.005]
[1763390470376,0.2393,3193.8,3192.1,0.005]
[1763390470673,0.1746,3194.2,3192.1,0.005]
[1763390470857,6.87125975,3195.4,3192.1,0.005]
[1763390470858,6.87125975,3195.8,3192.3,0.1984]
[1763390471075,0.2439,3195.4,3193.1,0.5012]
[1763390471232,0.2439,3195.4,3193.1,0.005]
[1763390471661,0.90699264,3195.2,3193.1,0.005]
[1763390471857,1.31249664,3194.6,3193.1,0.005]
[1763390472161,0.575504,3193.2,3193.1,0.005]
[1763390472362,0.575504,3193.2,3193.1,0.0025]
[1763390472578,0.575504,3193.2,3192.1,0.005]
[1763390472579,0.4089,3193.2,3192.1,0.005]
[1763390472778,0.405504,3193.0,3192.1,0.0025]
[1763390472980,1.31249664,3192.8,3192.1,0.0025]
[1763390473302,0.405504,3192.6,3190.0,0.1994]
[1763390473516,0.233,3192.9,3190.6,0.4962]
[1763390473801,0.159,3194.3,3191.9,0.4962]
[1763390473972,0.2439,3194.6,3191.9,0.4962]
[1763390474172,0.2439,3194.6,3192.0,0.405504]
[1763390474372,0.2439,3194.6,3192.1,0.18086966]
[1763390474604,6.87125975,3195.8,3191.8,3.13402838]
[1763390474605,0.2439,3194.5,3191.8,0.001]
[1763390474897,6.87125975,3194.3,3191.8,0.001]
[1763390475127,0.405504,3194.4,3191.8,0.001]
[1763390475407,0.005,3193.9,3191.8,0.001]
[1763390475806,0.405504,3193.7,3191.8,0.001]
[1763390475989,1.31249664,3193.7,3191.8,0.001]
[1763390476202,0.405504,3193.5,3191.8,0.001]
[1763390476726,1.31249664,3193.1,3191.8,0.001]
[1763390477012,0.159,3193.8,3190.1,0.005]
[1763390477013,0.405504,3192.9,3190.1,0.005]
[1763390477510,0.59352492,3193.8,3191.1,0.4862]
[1763390477511,0.2419,3193.7,3191.1,0.4862]
[1763390477682,0.2419,3193.7,3191.6,0.4812]
[1763390478085,0.2489,3194.9,3191.7,0.405504]
[1763390478281,0.157,3194.3,3191.6,0.4812]
[1763390478482,0.005,3194.9,3191.7,0.405504]
[1763390478683,0.2439,3194.5,3191.7,0.405504]
[1763390478898,0.2439,3194.5,3191.8,0.4802]
[1763390479098,0.005,3194.9,3191.9,0.405504]
[1763390479317,0.005,3194.9,3192.0,0.17926966]
[1763390479590,0.005,3194.9,3192.0,0.65946966]
[1763390479832,0.005,3194.9,3192.0,0.4802]
[1763390479997,0.005,3194.9,3192.1,0.4802]
[1763390480203,0.2489,3193.9,3191.6,0.001]
[1763390480427,0.005,3193.9,3191.8,0.001]
[1763390480628,0.2439,3193.8,3191.8,0.001]
[1763390480929,3.304,3194.7,3191.8,0.001]
[1763390480930,0.2439,3195.8,3191.9,0.49587711]
[1763390481112,0.002,3197.6,3191.9,0.49587711]
[1763390481113,0.2439,3194.8,3191.9,0.4802]
[1763390481742,0.405504,3194.7,3191.8,0.001]
[1763390481909,0.2439,3194.8,3191.8,0.001]
[1763390482097,0.649404,3194.7,3191.8,0.001]
[1763390482538,0.405504,3194.5,3191.8,0.001]
[1763390482852,3.5479,3194.4,3191.8,0.001]
[1763390483135,0.3952604,3194.3,3192.1,0.005]
[1763390483431,0.1943,3196.2,3192.1,0.005]
[1763390483432,0.2439,3195.1,3192.2,0.6773]
[1763390483637,0.1943,3196.2,3192.3,0.4802]
[1763390483638,0.2489,3194.9,3192.3,0.4802]
[1763390483992,0.005,3194.9,3192.4,0.405504]
[1763390484435,0.005,3194.9,3192.6,0.405504]
[1763390484636,0.005,3194.9,3192.8,0.405504]
[1763390484806,0.005,3194.9,3193.1,0.90699264]
[1763390485006,0.005,3194.9,3193.3,0.405504]
[1763390485320,0.005,3194.9,3193.5,0.405504]
[1763390485520,0.005,3194.9,3194.8,0.1971]
[1763390485722,0.1754,3197.3,3194.8,0.1971]
[1763390486098,0.1754,3197.3,3194.1,0.6773]
[1763390486099,0.2603,3196.6,3194.1,0.6773]
[1763390486297,0.2603,3196.1,3194.1,0.6773]
[1763390486525,0.2603,3196.0,3194.1,0.4802]
[1763390487260,0.2603,3195.8,3193.5,0.1971]
[1763390487462,0.2603,3196.7,3193.6,0.4775]
[1763390487662,0.2603,3196.7,3193.7,0.38059104]
[1763390487834,0.2603,3196.7,3193.7,0.405504]
[1763390488035,0.1754,3197.3,3193.8,0.4775]
[1763390488253,0.2653,3195.9,3193.5,0.1971]
[1763390488434,0.405504,3195.8,3193.2,0.4775]
[1763390488636,0.405504,3195.8,3193.1,0.005]
[1763390488961,0.405504,3195.6,3193.1,0.005]
[1763390489160,1.31249664,3195.5,3193.1,0.005]
[1763390489365,0.169,3193.2,3193.1,0.005]
[1763390489531,0.169,3193.2,3193.1,0.0023]
[1763390489721,0.405504,3194.9,3193.1,0.0023]
[1763390489722,0.405504,3193.9,3193.1,0.0023]
[1763390489928,0.2439,3193.2,3193.1,0.0023]
[1763390490927,0.405504,3193.1,3192.1,0.005]
[1763390491368,0.405504,3192.9,3191.6,0.001]
[1763390491568,0.1775,3191.9,3191.1,0.006]
[1763390492072,0.647404,3191.8,3191.1,0.006]
[1763390492369,0.405504,3191.7,3191.1,0.006]
[1763390492574,0.646404,3191.7,3191.1,0.006]
[1763390492735,0.405504,3191.5,3191.1,0.006]
[1763390492935,0.2409,3191.6,3191.1,0.006]
[1763390493136,0.2409,3191.5,3191.1,0.006]
[1763390494065,0.405504,3191.4,3191.1,0.006]
[1763390494580,0.405504,3191.2,3191.1,0.0035]
[1763390494782,0.405504,3191.2,3190.1,0.005]
[1763390494932,0.405504,3191.2,3189.1,0.005]
[1763390494933,0.2384,3191.1,3189.1,0.005]
[1763390495139,0.405504,3191.0,3189.1,0.005]
[1763390495495,0.405504,3190.8,3189.1,0.005]
[1763390495648,0.572004,3189.7,3189.1,0.005]
[1763390495844,0.1665,3189.7,3189.1,0.005]
[1763390496150,0.1665,3189.9,3189.1,0.005]
[1763390496378,0.2439,3189.7,3189.1,0.005]
[1763390496742,0.1665,3189.9,3189.1,0.005]
[1763390497063,0.2439,3190.6,3189.1,0.005]
[1763390497248,0.405504,3190.5,3189.1,0.005]
[1763390497653,0.2439,3190.4,3189.1,0.005]